Cogmind - Beta 13 @@@ ROGUE MODE // 2024.04.07 @ 01:48:30 Player: naththebg Result: Destroyed by D-53 Grenadier with Mini Grenade Launcher Performance ------------- Evolutions (0) 0 Regions Visited (2) 400 Robots Destroyed (26) 130 Value Destroyed (495) 495 Prototype IDs (0) 0 Alien Tech Used (0) 0 Bonus (0) 0 TOTAL SCORE: 1025 Bonus ------- None Cogmind --------- Core Integrity 0/250 Matter 24/300 Energy 100/100 System Corruption 0% Temperature Cool (7) Movement Rolling (95) Ox1 Location -10/Mines Parts ------- > --- POWER (1) -------- (None) > --- PROPULSION (2) --- Wheel > --- UTILITY (2) ------ Medium Storage Unit > --- WEAPON (2) ------- Light Assault Rifle Light Cannon > --- INVENTORY (10) --- Improved Heat Sink Large Storage Unit High-capacity Matter Pod (0) Weight Redist. System Targeting Computer Targeting Computer Targeting Computer Core Shielding Peak State ------------ > --- POWER ------------ Light Nuclear Core > --- PROPULSION ------- Wheel Compact Wheel > --- UTILITY ---------- Medium Storage Unit Light Armor Plating > --- WEAPON ----------- Light Cannon Grenade Launcher > --- INVENTORY -------- Light Ion Engine Improved Heat Sink Large Storage Unit High-capacity Matter Pod Weight Redist. System Targeting Computer Targeting Computer Targeting Computer Core Shielding Light Assault Rifle [Rating: 10] Favorites ----------- Power Light Ion Engine Engine Light Ion Engine Power Core Light Nuclear Core Propulsion Aluminum Leg Treads Light Treads Leg Aluminum Leg Wheel Wheel Utility Light Armor Plating Device Improved Heat Sink Storage Medium Storage Unit Processor Transport Network Coupler Protection Light Armor Plating Weapon Light Cannon Energy Gun Medium Laser Energy Cannon Beam Cannon Ballistic Gun Light Assault Rifle Ballistic Cannon Light Cannon Launcher Grenade Launcher Build | -11 -10 -10 ------- Run | Yrd Mat Min Slots Evolved . | . . . Power . | . . . Propulsion . | . . . Utility . | . . . Weapon . | . . . Parts Attached 42 | 9 30 3 Power 8 | 3 3 2 Engine 7 | 3 3 1 Core 1 | . . 1 Reactor . | . . . Propulsion 14 | 4 10 . Treads 1 | . 1 . Leg 6 | 2 4 . Wheel 7 | 2 5 . Hover . | . . . Flight . | . . . Utility 9 | . 9 . Device 2 | . 2 . Storage 1 | . 1 . Processor 2 | . 2 . Hackware . | . . . Protection 4 | . 4 . Artifact . | . . . Weapon 11 | 2 8 1 Energy Gun 2 | 2 . . Energy Cannon 2 | . 2 . Ballistic Gun 1 | . . 1 Ballistic Cannon 3 | . 3 . Launcher 3 | . 3 . Special Weapon . | . . . Impact Weapon . | . . . Slashing Weapon . | . . . Piercing Weapon . | . . . Special Melee Weapon . | . . . Unidentified Prototypes . | . . . Parts Lost 6 | . 1 5 Power 2 | . . 2 Propulsion 2 | . 1 1 Utility 1 | . . 1 Weapon 1 | . . 1 Highest Loss Streak 5 | . 1 5 To Critical Strikes . | . . . Average Slot Usage (%) 93 | . 93 96 Engine 13 | . 13 8 Leg 9 | . 10 . Wheel 16 | . 16 26 Device 7 | . 8 . Storage 3 | . 2 14 Processor 1 | . 1 . Protection 11 | . 11 11 Energy Gun 4 | . 4 . Energy Cannon 3 | . 3 . Ballistic Cannon 11 | . 11 14 Launcher 8 | . 8 14 Naked Turns . | . . . Heaviest Build 24 | 8 22 24 Greatest Support 26 | 20 26 26 Greatest Overweight (x) 1 | . 1 1 Average Overweight (x) . | . . . Largest Inventory Capacity 10 | 5 10 10 Average Capacity 6 | 5 5 10 Most Carried 10 | 5 10 10 Average Carried 5 | 3 5 9 Final Capacity 10 | 5 10 10 Final Carried 10 | 5 10 8 Class Distribution -------------------- 68% | Mutant 31% | Scavenger-Mutant Dominant Class ---------------- Mutant | -10/Materials Mutant | -10/Mines Resources | -11 -10 -10 ----------- Run | Yrd Mat Min Matter Collected 671 | 228 397 46 Remotely . | . . . Salvage Created 702 | 35 575 92 Parts 50 | 4 37 9 Haulers Intercepted 2 | . 2 . Recyclers Shooed 4 | . 4 . Parts Field Recycled . | . . . Retrieved Matter . | . . . Parts Self-Destructed . | . . . Prevented . | . . . Kills | -11 -10 -10 ------- Run | Yrd Mat Min Combat Hostiles Destroyed 23 | 1 8 14 Guns 4 | 1 3 . Cannons 6 | . 3 3 AOE 13 | . 2 11 Classes Destroyed 9 | 1 7 1 Worker 2 | . 2 . Builder 1 | . 1 . Hauler 2 | . 2 . Recycler 3 | . 3 . Operator 1 | . 1 . Watcher 3 | . 3 . Swarmer 5 | . 2 3 Grunt 9 | 1 6 2 Assembled 9 | . . 9 Best Kill Streak 9 | 1 4 9 Combat Bots Only 9 | 1 3 9 Max Kills in Single Turn 3 | 1 3 3 Gunslinging . | . . . Exploded 3 | . 1 3 Melee . | . . . Uniques/NPCs Destroyed . | . . . Combat | -11 -10 -10 -------- Run | Yrd Mat Min Hostile Shots Fired 69 | 4 39 26 Missed 14 | 1 8 5 Damage Taken 896 | 33 324 539 Core 252 | 22 92 138 Absorbed by Shields . | . . . Regen/Repaired (Parts) 11 | . 11 . Core Remaining (%) 91 | 91 . . Volleys Fired 59 | 3 43 13 Largest 2 | 2 2 2 Hottest 120 | 90 120 65 Shots Fired 116 | 6 85 25 Gun 25 | 6 18 1 Cannon 71 | . 58 13 Launcher 20 | . 9 11 Special . | . . . Kinetic 40 | . 26 14 Thermal 56 | 6 50 . Explosive 20 | . 9 11 Electromagnetic . | . . . Robot Hit Streak 11 | 2 11 5 Robot Miss Streak 3 | 2 3 3 Penetration Max . | . . . Secondary Targets 1 | . 1 . Max Gunslinging Chain 1 | . 1 . Shots Hit Robots 63 | 4 46 13 Core Hits 67 | 2 34 31 Critical Kills . | . . . Critical Parts Destroyed . | . . . Critical Strikes . | . . . Melee Attacks . | . . . Impact . | . . . Slashing . | . . . Piercing . | . . . Sneak Attacks . | . . . Combat Hostiles . | . . . Follow-up Attacks . | . . . Damage Inflicted 2061 | 48 1167 846 Guns 215 | 48 167 . Cannons 627 | . 494 133 Explosions 1219 | . 506 713 Melee . | . . . Ramming . | . . . Kinetic 347 | . 214 133 Thermal 495 | 48 447 . Explosive 1219 | . 506 713 Electromagnetic . | . . . Impact . | . . . Slashing . | . . . Piercing . | . . . Highest Corruption . | . . . Average Corruption . | . . . Corruption Purged . | . . . Corruption Blocked . | . . . Overload Shots . | . . . Overflow Damage 6 | . . 6 Projectiles . | . . . Explosions 6 | . . 6 Melee . | . . . Knockbacks 2 | . 2 . Impact . | . . . Kinetic 2 | . 2 . Secondary . | . . . Self-Inflicted Damage 77 | . . 77 Shots 2 | . . 2 Rammed . | . . . Targets Rammed . | . . . Kicked . | . . . Crushed . | . . . Highest Temperature 528 | 108 528 51 Average Temperature 104 | 59 131 14 Received Heat Transfer 165 | 18 132 15 Effects 8 | . 8 . Shutdowns 1 | . 1 . Energy Bleed 1 | . 1 . Interference 2 | . 2 . Damage (major) 4 | . 4 . Siege Activations . | . . . Robots Corrupted . | . . . Combat Hostiles . | . . . Parts Fried . | . . . Impact Corruptions . | . . . Robots Melted . | . . . Combat Hostiles . | . . . Parts Melted 2 | . 2 . Heat Transferred 1150 | 124 1026 . Parts Sabotaged . | . . . Parts Stolen . | . . . Parts Stripped . | . . . Power Chain Reactions . | . . . Alert | -11 -10 -10 ------- Run | Yrd Mat Min Peak Influence 183 | 20 175 183 Initial 13 | . 13 . Average 44 | 5 37 150 Maximum Alert Level . | . . . Low Security (%) 100 | 100 100 100 Level 1 . | . . . Level 2 . | . . . Level 3 . | . . . Level 4 . | . . . Level 5 . | . . . High Security . | . . . Max Security . | . . . Squads Dispatched 1 | . 1 . Investigation 1 | . 1 . Extermination . | . . . Reinforcement . | . . . Assault . | . . . Garrison . | . . . Intercept . | . . . Searches Triggered . | . . . Construction Impeded . | . . . Haulers Reinforced . | . . . Active Scanning Responses . | . . . Cargo Convoy Interrupts . | . . . Stealth | -11 -10 -10 --------- Run | Yrd Mat Min Distress Signals 1 | . 1 . Communications Jammed . | . . . Distress Signals . | . . . Times Spotted 32 | 1 15 16 Peak Tracking Total 8 | 1 4 8 Tactical Retreats . | . . . Traps | -11 -10 -10 ------- Run | Yrd Mat Min Traps Triggered 2 | . 2 . Indirectly . | . . . Trap Hack Attempts . | . . . Triggered . | . . . Disarmed 8 | . 8 . Reprogrammed . | . . . Reused . | . . . Traps Extracted . | . . . Installed . | . . . Triggered . | . . . Machines | -11 -10 -10 ---------- Run | Yrd Mat Min Machines Disabled 2 | . 2 . Max in Single Turn 1 | . 1 . Machines Repaired . | . . . Machines Dismantled . | . . . Machines Sabotaged . | . . . Overloaded Fab Kills . | . . . Hacking | -11 -10 -10 --------- Run | Yrd Mat Min Machines Accessed 9 | . 9 . Terminals 7 | . 7 . Fabricators . | . . . Repair Stations 1 | . 1 . Recycling Units 1 | . 1 . Scanalyzers . | . . . Garrison Access . | . . . Total Hacks 33 | . 33 . Successful 24 | . 24 . Failed 9 | . 9 . Catastrophic 1 | . 1 . Database Lockouts . | . . . Manual . | . . . Terminals 27 | . 27 . Fabricators . | . . . Repair Stations 3 | . 3 . Recycling Units 3 | . 3 . Scanalyzers . | . . . Garrison Access . | . . . Terminal Hacks 20 | . 20 . Record 3 | . 3 . Emergency Access Points 1 | . 1 . Alert Level 6 | . 6 . Unreport Threat 2 | . 2 . Locate Traps 1 | . 1 . Disarm Traps 3 | . 3 . Dispatch Records 1 | . 1 . Recall Reinforcements 1 | . 1 . Hauler Manifests 1 | . 1 . Zone Layout 1 | . 1 . Fabricator Hacks . | . . . Repair Station Hacks 2 | . 2 . Scan Component 1 | . 1 . Repair 1 | . 1 . Recycling Unit Hacks 2 | . 2 . Report Inventory 1 | . 1 . Retrieve Matter 1 | . 1 . Scanalyzer . | . . . Garrison Access Hacks . | . . . Unauthorized Hacks . | . . . Terminals . | . . . Fabricators . | . . . Repair Stations . | . . . Recycling Units . | . . . Scanalyzers . | . . . Garrison Access . | . . . Data Cores Recovered 1 | . 1 . Used . | . . . Hacking Detections 7 | . 7 . Full Trace Events 2 | . 2 . Feedback Events . | . . . Feedback Blocked . | . . . Robot Schematics Acquired . | . . . Robots Built . | . . . Authchips . | . . . Time . | . . . Total Robot Build Rating . | . . . Part Schematics Acquired . | . . . Parts Built . | . . . Authchips . | . . . Time . | . . . Total Part Build Rating . | . . . Parts Repaired 1 | . 1 . Time 26 | . 26 . Parts Recycled . | . . . Recycled Matter . | . . . Retrieved Matter . | . . . Retrieved Components . | . . . Parts Scanalyzed . | . . . Part Schematics Acquired . | . . . Parts Damaged . | . . . Bothacking | -11 -10 -10 ------------ Run | Yrd Mat Min Used RIF Installer . | . . . Robots Hacked . | . . . Non-combat . | . . . Combat . | . . . Robot Hacks Applied . | . . . Relay Couplers Released . | . . . Fabnet Peak Effective % . | . . . Robots Rewired . | . . . Allies Hacked . | . . . Hacks Repelled . | . . . Allies | -11 -10 -10 -------- Run | Yrd Mat Min Total Allies . | . . . Largest Group . | . . . Highest-Rated Group . | . . . Highest-Rated Ally . | . . . Total Orders . | . . . Ally Attacks . | . . . Total Damage . | . . . Kills . | . . . Allies Corrupted . | . . . Allies Melted . | . . . Intel | -11 -10 -10 ------- Run | Yrd Mat Min Robot Analysis Total . | . . . Derelict Logs Recovered 1 | . . 1 Drone Launches . | . . . Drone Recoveries . | . . . Exploration | -11 -10 -10 ------------- Run | Yrd Mat Min Turns Passed 1566 | 91 1353 122 Spaces Moved 1277 | 81 1107 89 Core 24 | 24 . . Treads . | . . . Legs 322 | 3 319 . Wheels 931 | 54 788 89 Hover . | . . . Flight . | . . . Fastest Speed 50 | 50 90 90 Average Speed 96 | 72 99 90 Slowest Speed 190 | 120 190 95 Overloaded Moves . | . . . Propulsion Burnouts . | . . . Robots Hopped . | . . . Cave-ins Triggered . | . . . Exploration Rate (%) 40 | 9 85 27 Regions Visited 2 Branch Regions 1 Pre-discovered Areas . | . . . Known Exits Taken . | . . . Unknown Exits Taken 2 | 1 1 . Scrap Searched . | . . . Spaces Dug . | . . . Terrain Destroyed 150 | . 49 101 Melee . | . . . Projectile . | . . . AOE 150 | . 49 101 Terrain Rammed . | . . . Walls Destroyed . | . . . Machines Disabled . | . . . Actions | -11 -10 -10 --------- Run | Yrd Mat Min Total 1491 | 107 1277 107 Wait 41 | . 41 . Move 1275 | 80 1106 89 Hop . | . . . Pick Up 48 | 12 35 1 Fast Attach 1 | . 1 . Attach 19 | 6 11 2 Detach 1 | 1 . . Swap 22 | 3 18 1 Drop 25 | 2 22 1 Fire 59 | 3 43 13 Melee . | . . . Ram . | . . . Kick . | . . . Crush . | . . . Escape Stasis . | . . . Rewire . | . . . Trap . | . . . Miscellaneous . | . . . Route ------- -11/Scrapyard -10/Materials (discovered 4 exits: [*Mat x2] / [*Min x2]) -10/Mines History --------- Turn | Location | Event 2 | -11/Scrapyard | Met Revision 17 60 | -11/Scrapyard | Discovered new exit (range 8) 92 | -11/Scrapyard | Entered Materials 323 | -10/Materials | Build established: Mutant 420 | -10/Materials | Discovered new exit (range 15) 877 | -10/Materials | Discovered new exit (range 11) 941 | -10/Materials | Repaired Com. Wheel 997 | -10/Materials | Discovered new exit (range 16) 1237 | -10/Materials | Discovered new exit (range 14) 1445 | -10/Materials | Entered Mines 1465 | -10/Mines | Learned location of 1 exit from Materials 1533 | -10/Mines | Assembled infested the area 1547 | -10/Mines | Core integrity fell below 50% 1566 | -10/Mines | Core integrity fell below 20% 1567 | -10/Mines | Destroyed by D-53 Grenadier with Mini Grenade Launcher Last Messages --------------- as-50896 destroyed. as-14780 destroyed. as-71266 destroyed. Lgt. Armor Plating destroyed. Knocked back. as-55842 destroyed. as-41704 destroyed. as-16361 destroyed. Destroyed Asb. Hover Unit. Com. Wheel destroyed. The unstable cave ceiling collapses. as-76717 destroyed. The unstable cave ceiling collapses. as-34933 destroyed. The unstable cave ceiling collapses. C-30 ARC bursts open, deploying its payload. D-53 Grenadier unfolds itself. Grenade Launcher destroyed. The unstable cave ceiling collapses. Lgt. Ion Engine destroyed. Map ----- +----------------------------------------------------+ | ???????????????????????????? | | ???????????????????????????? | | ???????????????????????????? | | ???????????????????????????? | | ???????????????????????????? | | ???????????????????????????? | | ???????????????????????????? | | ???????????????????????????? | | ???????????????????????????? | | ???????????????????????????? | | ???????????????????????????? | | ???????????????????????????? | | ????###????????????????????? | | ???? ????????????????????? | | ???? a????????????????????? | | ???# #????????????????????? | | ???# #????????????????????? | | ?## % ###??????????????????? | | ?# ##?????????????????? | | ?# # #?????????????????? | | ## #?????????????????? | | # #?????????????????# | | #????????????????? | | # #???????????????? # | | #????????????????? # | | @ ##???????????????# | | #######????????# | | ##?????## | | ##???## | | ## #??## # | | ?##### d #### #?? | | ?????#### d ## #??? | | ????????# ###? | | ??????????###% #? | | ????????????# #? | | ????????????## ## #? | | ?????????????### ## #? | | ???????????????## ### #? | | ????????????????# #?# #? | | ????????????????# #?# #? | | ???????????????# #?# ## | | ?????????????? #?# | | ????????????? ##?#### | | ???????????? ###?????? | | ???????????# ##???????? | | ???????????## #?????????? | | ????????????# ###??????????? | | ???????????????????????????? | | ???????????????????????????? | | ???????????????????????????? | +----------------------------------------------------+ Best States ------------- Heat Dissipation 39 Energy Generation 14 Energy Capacity 250 Matter Stores 300 Matter Capacity 300 Sight Range 16 Terrain Scan Density 10 Armor Coverage 150 Evasion (%) 55 Item Schematics ----------------- None Robot Schematics ------------------ None Fabricated ------------ Nothing Alien Tech Used ----------------- None Achievements -------------- Crack Shot Everything Is Under Control Loot Pinata Challenges ------------ None Game ------ Seed DisruptionSniperOptics Manual? 0 Play Time 00:37:07 Cumulative 2.0 hours Start 2024.04.07 @ 01:10:18 End 2024.04.07 @ 01:48:30 Sessions 1 Manual Loads 0 Difficulty Rogue Special Mode None Game No. 2 Rogue 2 Adventurer 0 Explorer 0 Win Type - Total 0 Types 0/0/0/0/0/0/0/0/0 Lore% 0 Gallery% 2 Achievement% 3 Wizard Run 0 Options --------- Layout 1 ASCII 0 Keyboard 0 Movement Mouse Keybinds 0 Fullscreen 1 Font 24/Smallcaps Map View 50x35 Zoom Use 0% Tactical HUD 0 Map Filters NONE Filters NONE Steam 1 RUN: 0882fa10-7602-4ea6-aa35-37eefde4733e